bitfinex-derivatives/quotes_BNBF0:USTF0_20251219
["timestamp","ask_amount","ask_price","bid_price","bid_amount"]
[1766163155983,1.75093507,850.33,848.81,0.87868967]
[1766163156182,1.75093507,850.32,848.81,0.87868967]
[1766163156483,1.75093507,850.25,848.75,0.87868967]
[1766163158384,1.75093507,850.24,848.76,0.87868967]
[1766163158683,0.20482577,849.88,848.76,1.08351544]
[1766163159183,0.20482577,849.88,848.76,0.20482577]
[1766163159384,0.20482577,849.88,848.76,1.08351544]
[1766163160284,0.20482577,849.88,848.8,0.87868967]
[1766163161387,0.20482577,849.88,848.87,0.87868967]
[1766163162588,0.20482577,849.88,848.9,0.87868967]
[1766163164190,0.20482577,849.88,848.91,0.87868967]
[1766163167289,0.20482577,849.88,848.95,0.87868967]
[1766163172298,0.20482577,849.88,848.96,0.87868967]
[1766163172598,0.20482577,849.88,848.95,0.87868967]
[1766163173294,0.20482577,849.88,848.84,0.87868967]
[1766163173497,0.20482577,849.88,848.82,0.87868967]
[1766163174797,0.20482577,849.88,848.82,0.87946018]
[1766163176299,0.20482577,849.88,848.76,1.08428595]
[1766163177200,0.20482577,849.88,848.76,0.87946018]
[1766163177398,0.20482577,849.88,848.75,0.87946018]
[1766163178102,0.20482577,849.88,848.72,0.87946018]
[1766163178301,0.20482577,849.88,848.73,0.87946018]
[1766163181002,0.20482577,849.88,848.73,0.87964815]
[1766163181306,0.20482577,849.88,848.72,0.87964815]
[1766163181804,0.20482577,849.88,848.7,0.87964815]
[1766163182104,0.20482577,849.88,848.69,0.87964815]
[1766163182404,1.37589656,849.88,848.64,0.20485048]
[1766163183305,0.20482577,849.88,848.64,0.20485048]
[1766163185509,0.20482577,849.88,848.64,1.08449863]
[1766163190117,0.20482577,849.88,848.65,0.87964815]
[1766163190316,0.20482577,849.88,848.64,0.20485048]
[1766163191218,0.20482577,849.88,848.62,0.87964815]
[1766163193115,1.37527734,849.88,848.63,0.87964815]
[1766163193314,0.20482577,849.88,848.66,0.87964815]
[1766163193613,0.20482577,849.88,848.77,0.87964815]
[1766163194417,0.20482577,849.88,848.84,0.87964815]
[1766163194818,0.20482577,849.88,848.86,0.87964815]
[1766163195218,0.20482577,849.88,848.87,0.87964815]
[1766163197224,0.20482577,849.88,848.8,0.87964815]
[1766163199326,0.20482577,849.88,848.85,0.87964815]
[1766163199922,0.20482577,849.88,848.86,0.87964815]
[1766163200526,0.20482577,849.88,848.94,0.87964815]
[1766163201825,0.20482577,849.88,848.93,0.87964815]
[1766163203424,0.20482577,849.88,848.78,1.1679943]
[1766163203728,0.20482577,849.88,848.93,0.88000043]
[1766163205229,0.20482577,849.88,848.9,0.88000043]
[1766163207430,0.20482577,849.88,848.55,0.20488606]
[1766163207431,0.20482577,849.88,848.82,0.88000043]
[1766163209231,0.20482577,849.88,848.83,0.88000043]
[1766163211333,0.20482577,849.88,848.87,0.88000043]
[1766163211535,0.20482577,849.88,848.91,0.88000043]
[1766163211734,0.20482577,849.88,848.55,0.20488606]
[1766163211735,0.20482577,849.88,848.93,0.88000043]
[1766163216234,0.20482577,849.88,848.78,1.1679943]
[1766163216235,0.20482577,849.88,848.94,0.88000043]
[1766163217141,0.20482577,849.88,848.93,0.88000043]
[1766163224944,0.20482577,849.88,848.96,0.88000043]
[1766163225341,1.75093507,850.28,848.96,0.88000043]
[1766163225542,1.75093507,850.38,849.06,0.88000043]
[1766163226247,0.20477876,850.06,849.06,0.88000043]
[1766163226645,0.20477876,850.06,849.08,0.88000043]
[1766163226846,0.20477876,850.06,849.07,0.88000043]
[1766163227349,0.20477876,850.06,849.1,0.88000043]
[1766163228447,0.20477876,850.06,849.09,0.88000043]
[1766163229450,0.20477876,850.06,849.11,0.88000043]
[1766163230147,0.20477876,850.06,849.1,0.88000043]
[1766163230650,0.20477876,850.06,849.11,0.88000043]
[1766163231145,0.20477876,850.06,849.14,0.88000043]
[1766163231350,0.20477876,850.06,848.98,1.1679943]
[1766163231351,0.20477876,850.06,849.13,0.88000043]
[1766163232246,0.20477876,850.06,849.12,0.88000043]
[1766163233353,0.20477876,850.06,849.11,0.88000043]
[1766163235254,0.20477876,850.06,849.1,0.88000043]
[1766163236355,0.20477876,850.06,848.9,0.88000043]
[1766163239656,0.20477876,850.06,848.85,0.88000043]
[1766163240752,0.20477876,850.06,848.86,0.88000043]
[1766163244256,0.20477876,850.06,848.87,0.88000043]
[1766163245358,0.20477876,850.06,848.88,0.88000043]
[1766163247361,0.20477876,850.06,848.89,0.88000043]
[1766163249257,0.20477876,850.06,848.9,0.88000043]
[1766163250660,0.20477876,850.06,848.91,0.88000043]
[1766163251067,0.20477876,850.06,848.9,0.88000043]
[1766163251366,0.20477876,850.06,848.87,0.88000043]
[1766163252363,0.20477876,850.06,848.88,0.88000043]
[1766163253166,0.20477876,850.06,848.89,0.88000043]
[1766163259271,0.20477876,850.06,848.9,0.88000043]
[1766163259470,0.20477876,850.06,848.89,0.88000043]
[1766163262475,0.20477876,850.06,848.85,0.88000043]
[1766163265079,0.20477876,850.06,848.84,0.88000043]
[1766163265273,0.20477876,850.06,848.77,0.88000043]
[1766163267976,0.20477876,850.06,848.82,0.88000043]
[1766163268283,0.20477876,850.06,848.89,0.88000043]
[1766163270882,0.20477876,850.06,848.93,0.88000043]
[1766163272683,0.20477876,850.06,848.9,0.88000043]
[1766163273978,0.20477876,850.06,848.81,0.88000043]
[1766163274183,0.20477876,850.06,848.79,0.88000043]
[1766163274379,0.20477876,850.06,848.55,0.20488606]
[1766163274380,1.75093507,850.04,848.72,0.88000043]
[1766163274584,1.17097844,849.88,848.72,0.88000043]
[1766163275085,1.17097844,849.84,848.67,0.88000043]
[1766163275285,1.17097844,849.82,848.65,0.88000043]
[1766163275485,1.17097844,849.83,848.64,0.88000043]
[1766163276385,1.17097844,849.84,848.63,0.88000043]
[1766163277285,1.17097844,849.84,848.62,0.88000043]
[1766163278282,1.17097844,849.85,848.62,0.88000043]
[1766163279382,1.17097844,849.86,848.61,0.88000043]
[1766163280282,1.17097844,849.86,848.6,0.88000043]
[1766163280785,1.17097844,849.87,848.61,0.88000043]
[1766163281288,1.17097844,849.88,848.61,0.88000043]
[1766163282389,1.17097844,849.88,848.6,0.88000043]
[1766163283396,1.17097844,849.89,848.6,0.88000043]
[1766163284394,1.17097844,849.86,848.56,0.88000043]
[1766163285594,1.17097844,849.82,848.5,0.88000043]
[1766163287290,1.17097844,849.83,848.49,0.88000043]
[1766163288196,1.17097844,849.82,848.5,0.88000043]
[1766163288498,1.17097844,849.83,848.49,0.88000043]
[1766163290198,1.75093507,849.98,848.49,0.88000043]
[1766163290199,1.17097844,849.82,848.49,0.88000043]
[1766163290498,1.17097844,849.77,848.43,0.88000043]
[1766163290898,1.17097844,849.77,848.42,0.88000043]
[1766163291300,1.17097844,849.76,848.43,0.88000043]
[1766163291599,1.17097844,849.77,848.43,0.88000043]
[1766163292196,1.17097844,849.76,848.43,0.88000043]
[1766163292496,1.17097844,849.77,848.43,0.88000043]
[1766163293197,1.17097844,849.76,848.43,0.88000043]
[1766163293399,1.17097844,849.77,848.43,0.88000043]
[1766163294199,1.17097844,849.77,848.44,0.88000043]
[1766163294502,1.17097844,849.76,848.43,0.88000043]
[1766163295198,1.17097844,849.76,848.28,1.1679943]
[1766163295199,1.17097844,849.75,848.44,0.88000043]
[1766163295498,1.17097844,849.76,848.44,0.88000043]
[1766163296299,1.17097844,849.75,848.45,0.88000043]
[1766163296503,1.17097844,849.75,848.44,0.88000043]
[1766163297403,1.17097844,849.76,848.44,0.88000043]
[1766163300307,1.17097844,849.74,848.42,0.88000043]
[1766163301306,1.17097844,849.74,848.41,0.88000043]
[1766163302204,1.17097844,849.75,848.41,0.88000043]
[1766163306408,1.17097844,849.74,848.41,0.88000043]
[1766163306610,1.17097844,849.74,848.4,0.88000043]
[1766163308112,1.17097844,849.75,848.4,0.88000043]
[1766163308408,1.17097844,849.74,848.41,0.88000043]
[1766163309213,1.17097844,849.75,848.4,0.88000043]
[1766163309508,1.17097844,849.74,848.41,0.88000043]
[1766163310212,1.17097844,849.74,848.4,0.88000043]
[1766163310413,1.17097844,849.74,848.41,0.88000043]
[1766163310712,1.17097844,849.74,848.4,0.88000043]
[1766163313518,1.17097844,849.73,848.4,0.88000043]
[1766163314418,1.17097844,849.72,848.39,0.88000043]
[1766163315318,1.17097844,849.72,848.4,0.88000043]
[1766163316219,1.17097844,849.72,848.26,0.20492769]
[1766163316420,1.17097844,849.72,848.4,0.87923994]
[1766163318423,1.17097844,849.72,848.41,0.87923994]
[1766163320125,1.17097844,849.72,848.42,0.87923994]
[1766163320328,1.17097844,849.71,848.42,0.87923994]
[1766163321824,1.75093507,849.86,848.42,0.87923994]
[1766163321825,1.17097844,849.7,848.42,0.87923994]
[1766163323223,1.17097844,849.7,848.43,0.87923994]
[1766163323525,1.17097844,849.69,848.43,0.87923994]
[1766163324230,1.17097844,849.65,848.38,0.87923994]
[1766163324430,1.17097844,849.59,848.33,0.87923994]
[1766163325429,1.17097844,849.55,848.29,0.87923994]
[1766163326531,1.17097844,849.53,848.27,0.87923994]
[1766163327234,1.17097844,849.54,848.26,0.87923994]
[1766163327534,1.17097844,849.53,848.27,0.87923994]
[1766163328136,1.17097844,849.54,848.26,0.87923994]
[1766163328335,1.17097844,849.53,848.27,0.87923994]
[1766163329431,1.17097844,849.48,848.23,0.87923994]
[1766163330137,1.17097844,849.48,848.22,0.87923994]
[1766163330338,1.17097844,849.47,848.23,0.87923994]
[1766163331137,1.17097844,849.48,848.23,0.87923994]
[1766163331334,1.17097844,849.46,848.24,0.87923994]
[1766163332434,1.17097844,849.45,848.25,0.87923994]
[1766163333135,1.17097844,849.45,848.24,0.87923994]
[1766163333437,1.17097844,849.44,848.26,0.87923994]
[1766163334036,1.17097844,849.43,848.26,0.87923994]
[1766163334237,1.17097844,849.38,848.19,0.87923994]
[1766163334435,1.17097844,849.28,848.1,0.87923994]
[1766163334632,1.17097844,849.27,848.09,0.87923994]
[1766163335234,1.17097844,849.29,848.08,0.87923994]
[1766163335436,1.17097844,849.28,848.08,0.87923994]
[1766163335839,1.17097844,849.29,848.08,0.87923994]
[1766163336234,1.17097844,849.3,848.07,0.87923994]
[1766163337138,1.17097844,849.31,848.05,0.87923994]
[1766163337341,1.17097844,849.31,848.06,0.87923994]
[1766163338235,0.20477876,850.06,847.89,0.20502971]
[1766163338236,1.17097844,849.32,848.05,0.87923994]
[1766163339141,1.17097844,849.31,848.04,0.87923994]
[1766163339343,1.17097844,849.28,848.0,0.87923994]
[1766163340041,1.17097844,849.29,848.0,0.87923994]
[1766163340241,1.17097844,849.29,847.99,0.87923994]
[1766163340939,1.17097844,849.3,848.0,0.87923994]
[1766163341338,1.75093507,849.46,848.0,0.87923994]
[1766163341339,1.17097844,849.31,848.0,0.87923994]
[1766163342239,1.17097844,849.32,847.99,0.87923994]
[1766163343240,1.17097844,849.32,847.98,0.87923994]
[1766163344144,1.17097844,849.33,847.98,0.87923994]
[1766163344346,1.17097844,849.32,847.98,0.87923994]
[1766163344646,1.17097844,849.23,847.88,0.87923994]
[1766163344845,1.17097844,849.23,847.24,0.00830342]
[1766163344846,1.17097844,848.98,847.63,0.87923994]
[1766163345344,1.17097844,849.01,847.6,0.87923994]
[1766163345841,1.17097844,848.96,847.55,0.87923994]
[1766163346042,1.17097844,848.95,847.55,0.87923994]
[1766163346246,1.17097844,848.98,847.51,0.87923994]
[1766163346446,1.17097844,848.89,847.42,0.87923994]
[1766163347146,1.75093507,849.04,847.34,0.20514816]
[1766163347147,1.17097844,848.92,847.38,0.87923994]
[1766163348343,1.17097844,848.92,847.34,0.20514816]
[1766163348344,1.17097844,848.88,847.34,0.20514816]
[1766163349047,1.17097844,848.87,847.34,0.20514816]
[1766163349344,1.17097844,848.88,847.34,0.20514816]
[1766163349745,1.17097844,848.91,847.34,0.20514816]
[1766163349948,1.17097844,848.94,847.34,0.20514816]
[1766163350145,1.17097844,848.96,847.34,0.20514816]
[1766163350445,1.17097844,848.92,847.34,0.20514816]
[1766163351245,1.17097844,848.94,847.34,0.20514816]
[1766163351450,1.17097844,848.91,847.34,0.20514816]
[1766163352143,1.75093507,849.06,847.34,0.20514816]
[1766163352144,1.17097844,848.85,847.34,0.20514816]
[1766163352347,1.17097844,848.85,847.01,0.87923994]
[1766163352550,1.17097844,848.85,847.2,0.20519231]
[1766163353148,1.17097844,848.87,847.2,0.20519231]
[1766163354252,0.01239442,849.7,847.2,0.20519231]
[1766163354253,1.17097844,848.89,847.2,0.20519231]
[1766163355354,1.17097844,848.91,847.2,0.20519231]
[1766163356150,1.17097844,848.93,847.2,0.20519231]
[1766163357256,1.17097844,848.94,847.2,0.20519231]
[1766163358150,1.17097844,848.95,847.2,0.20519231]
[1766163358356,1.17097844,848.91,847.2,0.20519231]
[1766163358957,1.17097844,848.85,846.76,0.87923994]
[1766163359258,1.17097844,848.82,847.06,0.20522861]
[1766163359557,4.08551518,849.87,847.06,0.20522861]
[1766163359558,1.17097844,848.78,847.06,0.20522861]
[1766163360657,1.17097844,848.94,847.06,0.20522861]
[1766163360858,1.17097844,848.96,847.06,0.20522861]
[1766163361554,1.17097844,848.97,847.06,0.20522861]
[1766163362254,1.17097844,848.98,847.06,0.20522861]
[1766163363360,1.17097844,848.99,847.06,0.20522861]
[1766163363758,1.17097844,848.98,847.06,0.20522861]
[1766163363963,1.17097844,848.94,847.06,0.20522861]
[1766163364458,1.17097844,848.95,847.06,0.20522861]
[1766163364863,1.17097844,848.96,847.06,0.20522861]
[1766163366261,1.17097844,848.97,847.06,0.20522861]
[1766163366860,1.17097844,849.02,847.06,0.20522861]
[1766163368263,1.17097844,849.03,847.06,0.20522861]
[1766163368765,1.17097844,849.02,847.06,0.20522861]
[1766163369266,1.17097844,849.03,847.06,0.20522861]
[1766163370463,1.17097844,848.91,847.06,0.20522861]
[1766163370864,1.17097844,848.89,847.06,0.20522861]
[1766163372569,1.17097844,848.84,847.06,0.20522861]
[1766163373469,2.91822513,849.6,847.06,0.20522861]
[1766163373470,1.17097844,848.83,847.06,0.20522861]
[1766163374270,1.17097844,848.82,847.06,0.20522861]
[1766163374468,1.17097844,848.83,847.06,0.20522861]
[1766163377174,1.17097844,848.82,847.06,0.20522861]
[1766163377377,1.17097844,848.83,847.06,0.20522861]
[1766163378172,1.17097844,848.82,847.06,0.20522861]
[1766163378876,1.17097844,848.83,847.06,0.20522861]
[1766163379074,2.91822513,849.59,847.06,0.20522861]
[1766163379075,1.17097844,848.82,847.06,0.20522861]
[1766163380173,1.17097844,848.81,847.06,0.20522861]
[1766163381179,1.17097844,848.87,847.06,0.20522861]
[1766163381375,1.17097844,848.93,847.06,0.20522861]
[1766163382175,1.17097844,848.92,847.06,0.20522861]
[1766163382575,1.17097844,848.85,847.06,0.20522861]
[1766163383176,1.17097844,848.83,847.06,0.20522861]
[1766163383780,1.17097844,848.86,847.06,0.20522861]
[1766163384076,1.17097844,848.9,847.06,0.20522861]
[1766163384378,1.17097844,848.88,847.06,0.20522861]
[1766163385176,1.17097844,848.87,847.06,0.20522861]
[1766163386078,1.17097844,848.86,847.06,0.20522861]
[1766163386283,1.17097844,848.8,847.06,0.20522861]
[1766163387182,1.17097844,848.79,847.06,0.20522861]
[1766163388288,1.17097844,848.78,847.06,0.20522861]
[1766163388483,1.17097844,848.77,847.06,0.20522861]
[1766163388684,1.17097844,848.78,847.06,0.20522861]
[1766163388886,1.17097844,848.77,847.06,0.20522861]
[1766163389287,1.17097844,848.76,847.06,0.20522861]
[1766163390186,1.17097844,848.75,847.06,0.20522861]
[1766163390389,1.17097844,848.74,847.06,0.20522861]
[1766163391090,1.17097844,848.73,847.06,0.20522861]
[1766163392189,1.17097844,848.72,847.06,0.20522861]
[1766163392383,1.17097844,848.71,847.06,0.20522861]
[1766163392588,1.17097844,848.79,847.06,0.20522861]
[1766163393189,1.17097844,848.77,847.06,0.20522861]
[1766163394190,1.17097844,848.75,847.06,0.20522861]
[1766163395090,2.91822513,849.51,847.06,0.20522861]
[1766163395091,1.17097844,848.74,847.06,0.20522861]
[1766163395386,1.17097844,848.8,847.06,0.20522861]
[1766163395886,1.17097844,848.82,847.06,1.07570589]
[1766163396186,1.17097844,848.8,847.08,0.87047728]
[1766163396889,1.17097844,849.01,847.3,0.87047728]
[1766163397085,1.17097844,849.14,847.43,0.87047728]
[1766163397283,1.17097844,849.13,847.45,0.87047728]
[1766163397685,1.17097844,849.12,847.45,0.87047728]
[1766163397889,1.17097844,849.08,847.41,0.87047728]
[1766163398089,1.17097844,849.0,847.32,0.87047728]
[1766163398287,1.17097844,848.98,847.35,0.87047728]
[1766163399188,1.17097844,848.96,847.37,0.87047728]
[1766163400290,1.17097844,848.94,847.39,0.87047728]
[1766163400892,1.17097844,848.95,847.4,0.87047728]
[1766163401390,0.01398534,849.8,847.43,0.87047728]
[1766163401391,1.17097844,848.92,847.43,0.87047728]
[1766163402193,1.17097844,848.9,847.45,0.87047728]
[1766163403392,1.17097844,848.87,847.48,0.87047728]
[1766163404098,1.17097844,848.87,847.52,0.87047728]
[1766163404297,1.17097844,848.83,847.52,0.87047728]
[1766163405298,1.17097844,848.82,847.53,0.87047728]
[1766163405894,1.17097844,848.8,847.5,0.87047728]
[1766163406297,1.17097844,848.8,847.51,0.87047728]
[1766163406696,1.17097844,848.72,847.43,0.87047728]
[1766163407398,1.17097844,848.71,847.42,0.87047728]
[1766163407701,1.17097844,848.7,847.42,0.87047728]
[1766163409299,1.17097844,848.69,847.41,0.87047728]
[1766163409702,1.17097844,848.66,847.38,0.87047728]
[1766163410302,1.17097844,848.6,847.33,0.87047728]
[1766163410601,1.17097844,848.59,847.31,0.87047728]
[1766163411003,1.17097844,848.58,847.31,0.87047728]
[1766163412805,1.17097844,848.59,847.32,0.87047728]
[1766163414908,1.17097844,848.58,847.32,0.87047728]
[1766163415109,1.17097844,848.59,847.32,0.87047728]
[1766163415408,1.17097844,848.58,847.32,0.87047728]
[1766163416212,1.17097844,848.59,847.31,0.87047728]
[1766163416410,1.17097844,848.58,847.32,0.87047728]
[1766163416608,1.17097844,848.58,847.31,0.87047728]
[1766163419411,1.17097844,848.58,847.32,0.87047728]
[1766163419910,1.17097844,848.55,847.29,0.87047728]
[1766163420812,1.17097844,848.52,847.26,0.87047728]
[1766163421315,1.17097844,848.42,847.16,0.87047728]
[1766163421511,1.17097844,848.39,847.12,0.87047728]
[1766163423315,1.17097844,848.4,847.12,0.87047728]
[1766163423612,1.17097844,848.39,847.1,0.87047728]
[1766163425013,1.17097844,848.39,847.11,0.87047728]
[1766163425218,1.17097844,848.45,847.17,0.87047728]
[1766163425413,1.17097844,848.54,847.25,0.87047728]
[1766163426317,1.17097844,848.55,847.26,0.87047728]
[1766163426518,0.20521167,848.22,847.26,0.87047728]
[1766163428621,0.20521167,848.22,847.23,0.87047728]
[1766163429722,0.20521167,848.22,847.13,0.87047728]
[1766163430322,0.20521167,848.22,847.12,0.87047728]
[1766163432424,0.20521167,848.22,847.21,0.87047728]
[1766163432822,0.20521167,848.22,847.25,0.87047728]
[1766163433020,0.20521167,848.22,847.26,0.87047728]
[1766163433421,0.20521167,848.22,847.3,0.87047728]
[1766163433724,1.17097844,848.67,847.38,0.87047728]
[1766163433922,0.20518868,848.32,847.38,0.87047728]
[1766163434126,0.20518868,848.32,847.4,0.87047728]
[1766163434322,1.17097844,848.7,847.42,0.87047728]
[1766163434627,0.2051669,848.42,847.43,0.87047728]
[1766163434822,0.2051669,848.42,847.48,0.87047728]
[1766163435026,1.17097844,848.77,847.48,0.87047728]
[1766163435223,1.75093507,848.92,847.33,1.1679943]
[1766163435224,0.20515239,848.44,847.49,0.87047728]
[1766163435423,0.20515239,848.44,847.33,1.1679943]
[1766163435424,0.20515239,848.44,847.48,0.87047728]
[1766163437024,0.20515239,848.44,847.49,0.87047728]
[1766163439329,1.17097844,848.77,847.49,0.87047728]
[1766163439531,1.17097844,848.89,847.61,0.87047728]
[1766163439729,1.17097844,848.95,847.67,0.87047728]
[1766163439928,0.20512216,848.74,847.67,0.87047728]
[1766163440329,0.20512216,848.74,847.71,0.87047728]
[1766163441327,0.20512216,848.74,847.7,0.87047728]
[1766163442431,0.20512216,848.74,847.69,0.87047728]
[1766163443333,0.20512216,848.74,847.72,0.87047728]
[1766163444530,0.20512216,848.74,847.71,0.87047728]
[1766163445430,0.20512216,848.74,847.7,0.87047728]
[1766163445832,0.20512216,848.74,847.73,0.87047728]
[1766163446529,0.20512216,848.74,847.72,0.87047728]
[1766163446832,0.20512216,848.74,847.57,1.1679943]
[1766163446833,0.20512216,848.74,847.73,0.87047728]
[1766163447233,0.20512216,848.74,847.74,0.87047728]
[1766163447432,0.20512216,848.74,847.44,1.72700038]
[1766163447433,0.20512216,848.74,847.73,0.87047728]
[1766163448033,1.17097844,849.19,847.75,0.87047728]
[1766163448235,5.83645026,850.74,846.96,0.20524979]
[1766163448236,1.17097844,849.23,847.78,0.87047728]
[1766163448435,1.17097844,849.23,847.63,1.1679943]
[1766163448436,0.20506172,848.86,847.77,0.87047728]
[1766163449430,0.20506172,848.86,847.81,0.87047728]
[1766163450334,0.20506172,848.86,846.96,0.21698037]
[1766163450335,0.20506172,848.86,847.79,0.87047728]
[1766163451434,0.20506172,848.86,847.78,0.87047728]
[1766163452330,0.20506172,848.86,847.77,0.87047728]
[1766163452836,0.20506172,848.86,847.78,0.87047728]
[1766163453335,0.20506172,848.86,847.77,0.87047728]
[1766163454437,0.20506172,848.86,847.76,0.87047728]
[1766163455237,0.20503273,849.0,847.86,0.87047728]
[1766163455437,0.20503273,849.0,847.85,0.87047728]
[1766163455637,0.20503273,849.0,847.9,0.87047728]
[1766163456438,0.20503273,849.0,847.88,0.87047728]
[1766163457440,0.20503273,849.0,847.86,0.87047728]
[1766163458444,0.20503273,849.0,847.85,0.87047728]
[1766163459443,0.20503273,849.0,847.83,0.87047728]
[1766163460541,0.20503273,849.0,847.82,0.87047728]
[1766163461344,0.20503273,849.0,847.81,0.87047728]
[1766163462341,0.20503273,849.0,847.8,0.87047728]
[1766163463451,0.20503273,849.0,847.78,0.87047728]
[1766163464447,0.20503273,849.0,847.77,0.87047728]
[1766163465548,0.20503273,849.0,847.76,0.87047728]
[1766163466343,0.20503273,849.0,847.75,0.87047728]
[1766163467446,0.20503273,849.0,847.74,0.87047728]
[1766163468450,0.20503273,849.0,847.73,0.87047728]
[1766163469049,0.20503273,849.0,847.74,0.87047728]
[1766163469554,0.20503273,849.0,847.73,0.87047728]
[1766163471353,0.20503273,849.0,847.72,0.87047728]
[1766163471851,0.20503273,849.0,847.66,0.87047728]
[1766163472152,0.20503273,849.0,847.65,0.87047728]
[1766163473555,0.20503273,849.0,847.6,0.87047728]
[1766163473855,0.20503273,849.0,847.59,0.87047728]
[1766163474353,0.20503273,849.0,847.6,0.87047728]
[1766163475457,0.20503273,849.0,847.64,0.87047728]
[1766163475758,0.20503273,849.0,847.66,0.87047728]
[1766163476257,0.20503273,849.0,847.71,0.87047728]
[1766163478358,0.20503273,849.0,847.72,0.87047728]
[1766163478861,0.20503273,849.0,847.74,0.87047728]
[1766163479360,0.20503273,849.0,847.79,0.87047728]
[1766163480257,1.17097844,849.67,847.79,0.87047728]
[1766163480461,1.17097844,849.67,847.48,1.72700038]
[1766163480462,1.17097844,849.69,847.81,0.87047728]
[1766163480661,0.2049971,849.12,847.81,0.87047728]
[1766163480862,1.17097844,849.69,847.81,0.87047728]
[1766163481164,0.20499468,849.12,847.81,0.87047728]
[1766163481462,1.17097844,849.71,847.85,0.87047728]
[1766163482161,1.17097844,849.72,847.86,0.87047728]
[1766163482358,1.17097844,849.71,847.87,0.87047728]
[1766163482563,0.20498744,849.26,847.87,0.87047728]
[1766163482762,0.20498744,849.26,847.9,0.87047728]
[1766163483459,0.20498744,849.26,847.05,0.00995579]
[1766163483460,0.20498744,849.26,847.91,0.87047728]
[1766163484160,0.20498744,849.26,848.0,0.87047728]
[1766163484360,0.20498744,849.26,848.07,0.87047728]
[1766163484963,1.17097844,849.87,848.07,0.87047728]
[1766163485165,0.20494277,849.36,848.07,0.87047728]
[1766163485659,0.20494277,849.36,848.14,0.87047728]
[1766163488267,0.20494277,849.36,848.13,0.87047728]
[1766163488466,0.20494277,849.36,848.15,0.87047728]
[1766163488666,1.17097844,849.97,848.19,0.87047728]
[1766163488864,0.20492226,849.43,848.19,0.87047728]
[1766163489168,1.17097844,849.97,848.19,0.87047728]
[1766163489368,0.20491743,849.43,848.19,0.87047728]
[1766163489561,1.17097844,849.97,848.19,0.87047728]
[1766163489968,1.17097844,849.96,848.19,0.87047728]
[1766163490464,0.01105447,850.82,848.21,0.87047728]
[1766163490465,1.17097844,849.95,848.21,0.87047728]
[1766163490870,0.20492346,849.52,848.21,0.87047728]
[1766163491272,0.20492346,849.52,848.2,0.87047728]
[1766163491567,0.20492346,849.52,847.36,0.01188652]
[1766163491568,0.20492346,849.52,848.23,0.87047728]
[1766163492269,0.20492346,849.52,848.22,0.87047728]
[1766163492573,0.20492346,849.52,848.25,0.87047728]
[1766163493374,0.20492346,849.52,848.11,1.1679943]
[1766163493569,0.20492346,849.52,847.26,0.01448406]
[1766163493773,0.20492346,849.52,846.41,0.00906256]
[1766163494769,0.20492346,849.52,847.07,55.23994863]
[1766163496277,0.20492346,849.52,848.31,0.87600085]
[1766163497172,0.20492346,849.52,848.27,0.87600085]
[1766163497377,0.20492346,849.52,848.28,0.87600085]
[1766163498373,0.20492346,849.52,848.29,0.87600085]
[1766163499474,0.20492346,849.52,848.21,0.87600085]
[1766163500377,0.20492346,849.52,848.22,0.87600085]
[1766163500575,0.20492346,849.52,848.21,0.87600085]
[1766163501378,0.20492346,849.52,848.22,0.87600085]
[1766163502277,0.20492346,849.52,848.23,0.87600085]
[1766163502681,0.20492346,849.52,848.25,0.87600085]
[1766163504484,0.20492346,849.52,848.24,0.87600085]
[1766163506483,0.20492346,849.52,848.25,0.87600085]
[1766163507486,0.20492346,849.52,848.26,0.87600085]
[1766163509488,0.20492346,849.52,848.27,0.87600085]
[1766163512288,0.20492346,849.52,848.28,0.87600085]
[1766163513494,0.20492346,849.52,848.29,0.87600085]
[1766163516296,0.20492346,849.52,848.3,0.87600085]
[1766163519800,0.20492346,849.52,848.29,0.87600085]
[1766163519994,0.20492346,849.52,848.21,0.87600085]
[1766163521294,0.20492346,849.52,848.22,0.87600085]
[1766163524301,0.20492346,849.52,848.23,0.87600085]
[1766163524503,0.20492346,849.52,848.32,0.87600085]
[1766163525003,0.20492346,849.52,848.28,0.87600085]
[1766163525302,0.20492346,849.52,848.24,0.87600085]
[1766163526301,0.20492346,849.52,848.2,0.87600085]
[1766163526502,0.20492346,849.52,848.21,0.87600085]
[1766163527297,1.37062224,849.52,848.21,0.87600085]
[1766163528398,1.37062224,849.52,848.22,0.87600085]
[1766163530598,1.16569878,849.51,848.22,0.87600085]
[1766163531303,1.16569878,849.51,848.23,0.87600085]
[1766163532398,1.16569878,849.5,848.24,0.87600085]
[1766163533500,1.16569878,849.49,848.25,0.87600085]
[1766163534505,1.16569878,849.48,848.26,0.87600085]
[1766163535001,1.16569878,849.45,848.23,0.87600085]
[1766163535205,1.16569878,849.39,848.17,0.87600085]
[1766163535404,1.16569878,849.37,848.18,0.87600085]
[1766163536209,1.16569878,849.37,848.17,0.87600085]
[1766163536405,1.16569878,849.37,848.18,0.87600085]
[1766163537505,1.16569878,849.36,848.19,0.87600085]
[1766163538306,1.16569878,849.37,848.18,0.87600085]
[1766163538509,1.16569878,849.36,848.19,0.87600085]
[1766163541310,1.16569878,849.36,848.2,0.87600085]
[1766163541513,1.16569878,849.36,848.19,0.87600085]
[1766163542111,1.16569878,849.35,848.18,0.87600085]
[1766163542310,1.16569878,849.31,848.14,0.87600085]
[1766163543114,0.20492346,849.52,848.08,0.87600085]